fUSD/lending_fUSD_20240729
["ID","MTS","AMOUNT","RATE_DAILY","PERIOD"]
[333525631,1722229833485,-14134.7226,0.00010735,2]
[333525632,1722229833496,-6926.9133,0.00010735,2]
[333525633,1722229833505,-492.19,0.00010735,2]
[333525634,1722229833515,-150.0,0.00010752,2]
[333525635,1722229833525,-150.0,0.00010752,2]
[333525636,1722229833534,-150.0,0.00010752,2]
[333525637,1722229833543,-150.0,0.00010752,2]
[333525638,1722229833553,-2500.0,0.00010777,2]
[333525639,1722229833564,-6522.9,0.00010789,2]
[333525640,1722229833573,-150.99,0.0001079,2]
[333525641,1722229833583,-499.99,0.0001079,2]
[333525642,1722229833593,-4640.57444076,0.0001079,2]
[333525643,1722229833603,-46086.96977125,0.000108,2]
[333525644,1722229833628,-442.78390852,0.000108,2]
[333525646,1722229837808,-308.951889,0.000108,2]
[333525647,1722229837867,-49919.29443123,0.000108,2]
[333525648,1722229837877,-3113.92025393,0.0001085,2]
[333525649,1722229837886,-3113.92025393,0.00010854,2]
[333525650,1722229837896,-7983.37929989,0.00010855,2]
[333525651,1722229837906,-369.34788572,0.00010857,2]
[333525652,1722229837915,-1000.0,0.00010858,2]
[333525653,1722229837925,-6711.7706,0.00010858,2]
[333525654,1722229837934,-369.34788572,0.00010858,2]
[333525655,1722229837943,-3761.07296518,0.00010858,2]
[333525656,1722229837952,-7983.37929989,0.00010859,2]
[333525657,1722229837961,-7983.37929989,0.00010863,2]
[333525658,1722229837971,-369.34788572,0.00010866,2]
[333525659,1722229837980,-3113.92025393,0.00010869,2]
[333525660,1722229837989,-3761.07296518,0.00010871,2]
[333525661,1722229838000,-38367.0,0.00010877,2]
[333525662,1722229838009,-1202.0,0.00010877,2]
[333525663,1722229838018,-5121.0,0.00010877,2]
[333525664,1722229838027,-5830.0,0.00010877,2]
[333525665,1722229838036,-1669.0,0.00010877,2]
[333525666,1722229838048,-1073.0,0.00010877,2]
[333525667,1722229838058,-3761.07296518,0.00010882,2]
[333525668,1722229838067,-552.508,0.00010883,2]
[333525669,1722229838076,-155.375,0.00010883,2]
[333525670,1722229838086,-2394.031,0.00010883,2]
[333525671,1722229838096,-1994.0,0.00010883,2]
[333525672,1722229838105,-3283.0,0.00010883,2]
[333525673,1722229838115,-1301.0,0.00010883,2]
[333525674,1722229838127,-158.02600733,0.00010893,2]
[333525675,1722229838138,-584.79958922,0.00010899,2]
[333525676,1722229838147,-584.79958915,0.00010899,2]
[333525677,1722229838157,-584.79958915,0.00010899,2]
[333525678,1722229838166,-584.79958915,0.00010899,2]
[333525679,1722229838175,-584.79958915,0.00010899,2]
[333525680,1722229838184,-584.79958915,0.00010899,2]
[333525681,1722229838194,-584.79958915,0.00010899,2]
[333525682,1722229838204,-584.79958915,0.00010899,2]
[333525683,1722229838213,-584.79958915,0.00010899,2]
[333525684,1722229838223,-1326.27006251,0.00010899,2]
[333525685,1722229838232,-1326.27006251,0.00010899,2]
[333525686,1722229838241,-1326.27006251,0.00010899,2]
[333525687,1722229838250,-1326.27006251,0.00010899,2]
[333525688,1722229838259,-1326.27006251,0.00010899,2]
[333525689,1722229838269,-1326.27006251,0.00010899,2]
[333525690,1722229838278,-1326.27006251,0.00010899,2]
[333525691,1722229838287,-1326.27006251,0.00010899,2]
[333525692,1722229838297,-1326.27006251,0.00010899,2]
[333525693,1722229838306,-435.31021242,0.00010899,2]
[333525694,1722229838315,-1000.0,0.000109,3]
[333525695,1722229838324,-1177.0,0.000109,2]
[333525696,1722229838334,-584.79958915,0.000109,2]
[333525697,1722229838343,-15500.0,0.000109,2]
[333525698,1722229838353,-1326.27006251,0.000109,2]
[333525699,1722229838362,-500.0,0.00010912,2]
[333525700,1722229838371,-500.0,0.00010958,2]
[333525701,1722229838380,-500.0,0.00010958,2]
[333525702,1722229838389,-500.0,0.00010958,2]
[333525703,1722229838399,-500.0,0.00010958,2]
[333525704,1722229838409,-500.0,0.00010958,2]
[333525705,1722229838419,-500.0,0.00010958,2]
[333525706,1722229838429,-500.0,0.00010958,2]
[333525707,1722229838438,-500.0,0.00010958,2]
[333525708,1722229838448,-1848.53,0.00010958,2]
[333525709,1722229838457,-1848.53,0.00010958,2]
[333525710,1722229838467,-500.0,0.00010958,2]
[333525711,1722229838476,-500.0,0.00010958,2]
[333525712,1722229838485,-584.64,0.00010958,2]
[333525714,1722229838495,-584.64,0.00010958,2]
[333525716,1722229838504,-500.0,0.00010958,2]
[333525718,1722229838513,-500.0,0.00010958,2]
[333525719,1722229838523,-575.41572458,0.00010958,2]
[333525720,1722229838532,-500.0,0.00010958,2]
[333525721,1722229838541,-500.0,0.00010958,2]
[333525722,1722229838550,-683.68,0.00010958,2]
[333525723,1722229838560,-683.68,0.00010958,2]
[333525724,1722229838569,-500.0,0.00010958,2]
[333525725,1722229838579,-500.0,0.00010958,2]
[333525726,1722229838588,-1388.84,0.00010958,2]
[333525727,1722229838597,-1388.84,0.00010958,2]
[333525728,1722229838607,-500.0,0.00010958,2]
[333525729,1722229838617,-500.0,0.00010958,2]
[333525730,1722229838626,-500.0,0.00010958,2]
[333525732,1722229838636,-165.22971288,0.00010958,2]
[333525734,1722229838645,-500.0,0.00010958,2]
[333525736,1722229838655,-500.0,0.00010958,2]
[333525738,1722229838667,-500.0,0.00010958,2]
[333525740,1722229838676,-500.0,0.00010958,2]
[333525742,1722229838686,-500.0,0.00010958,2]
[333525744,1722229838698,-500.0,0.00010958,2]
[333525746,1722229838708,-500.0,0.00010958,2]
[333525748,1722229838718,-500.0,0.00010958,2]
[333525771,1722229838931,-500.0,0.00010958,2]
[333525773,1722229838941,-500.0,0.00010958,2]
[333525775,1722229838950,-500.0,0.00010958,2]
[333525777,1722229838959,-500.0,0.00010958,2]
[333525779,1722229838968,-500.0,0.00010958,2]
[333525781,1722229838977,-500.0,0.00010958,2]
[333525783,1722229838986,-500.0,0.00010958,2]
[333525785,1722229838995,-500.0,0.00010958,2]
[333525787,1722229839004,-500.0,0.00010958,2]
[333525789,1722229839013,-530.84,0.00010958,2]
[333525791,1722229839022,-530.84,0.00010958,2]
[333525793,1722229839037,-500.0,0.00010958,2]
[333525794,1722229839055,-500.0,0.00010958,2]
[333525795,1722229839064,-500.0,0.00010958,2]
[333525796,1722229839074,-500.0,0.00010958,2]
[333525797,1722229839083,-500.0,0.00010958,2]
[333525798,1722229839095,-169.69092734,0.00010958,2]
[333525799,1722229839105,-500.0,0.00010958,2]
[333525800,1722229839116,-500.0,0.00010958,2]
[333525801,1722229839126,-500.0,0.00010958,2]
[333525802,1722229839136,-564.51,0.00010958,2]
[333525803,1722229839146,-500.0,0.00010958,2]
[333525804,1722229839155,-564.51,0.00010958,2]
[333525805,1722229839165,-1301.86,0.00010958,2]
[333525806,1722229839177,-1301.86,0.00010958,2]
[333525807,1722229839187,-537.49,0.00010958,2]
[333525808,1722229839197,-537.49,0.00010958,2]
[333525809,1722229839207,-500.0,0.00010958,2]
[333525810,1722229839216,-500.0,0.00010958,2]
[333525811,1722229839226,-500.0,0.00010958,2]
[333525812,1722229839235,-500.0,0.00010958,2]
[333525813,1722229839245,-500.0,0.00010958,2]
[333525814,1722229839254,-500.0,0.00010958,2]
[333525815,1722229839264,-500.0,0.00010958,2]
[333525816,1722229839273,-1234.04,0.00010958,2]
[333525817,1722229839283,-1234.04,0.00010958,2]
[333525818,1722229839292,-500.0,0.00010958,2]
[333525819,1722229839302,-500.0,0.00010958,2]
[333525820,1722229839311,-568.03,0.00010958,2]
[333525821,1722229839320,-568.03,0.00010958,2]
[333525822,1722229839329,-500.0,0.00010958,2]
[333525823,1722229839338,-500.0,0.00010958,2]
[333525824,1722229839347,-500.42,0.00010958,2]
[333525825,1722229839356,-500.42,0.00010958,2]
[333525826,1722229839366,-500.0,0.00010958,2]
[333525827,1722229839375,-500.0,0.00010958,2]
[333525828,1722229839384,-500.0,0.00010958,2]
[333525829,1722229839393,-900.61,0.00010958,2]
[333525830,1722229839402,-900.61,0.00010958,2]
[333525831,1722229839413,-562.02,0.00010958,2]
[333525832,1722229839423,-562.02,0.00010958,2]
[333525833,1722229839432,-710.02,0.00010958,2]
[333525834,1722229839441,-710.02,0.00010958,2]
[333525835,1722229839451,-1711.83,0.00010958,2]
[333525836,1722229839461,-315.70154473,0.00010958,2]
[333525837,1722229839470,-1711.83,0.00010958,2]
[333525838,1722229839480,-500.0,0.00010958,2]
[333525839,1722229839490,-1816.73,0.00010958,2]
[333525840,1722229839499,-1816.73,0.00010958,2]
[333525841,1722229839509,-500.0,0.00010958,2]
[333525842,1722229839519,-500.0,0.00010958,2]
[333525843,1722229839528,-500.0,0.00010958,2]
[333525844,1722229839538,-500.0,0.00010958,2]
[333525845,1722229839548,-500.0,0.00010958,2]
[333525846,1722229839557,-500.0,0.00010958,2]
[333525847,1722229839567,-500.0,0.00010958,2]
[333525848,1722229839576,-500.0,0.00010958,2]
[333525849,1722229839586,-500.0,0.00010958,2]
[333525850,1722229839595,-500.0,0.00010958,2]
[333525851,1722229839605,-500.0,0.00010958,2]
[333525852,1722229839614,-500.0,0.00010958,2]
[333525853,1722229839624,-500.0,0.00010958,2]
[333525854,1722229839634,-547.68,0.00010958,2]
[333525855,1722229839643,-547.68,0.00010958,2]
[333525856,1722229839653,-500.0,0.00010958,2]
[333525857,1722229839664,-590.092788,0.00010958,2]
[333525858,1722229839674,-754.95,0.00010958,2]
[333525859,1722229839683,-500.0,0.00010958,2]
[333525860,1722229839693,-704.24,0.00010958,2]
[333525861,1722229839702,-704.24,0.00010958,2]
[333525862,1722229839712,-500.0,0.00010958,2]
[333525863,1722229839722,-500.0,0.00010958,2]
[333525864,1722229839731,-500.0,0.00010958,2]
[333525865,1722229839741,-562.49,0.00010958,2]
[333525866,1722229839750,-500.0,0.00010958,2]
[333525867,1722229839760,-503.70629878,0.00010958,2]
[333525868,1722229839770,-353.00793059,0.00010958,2]
[333525869,1722229839779,-500.0,0.00010958,2]
[333525870,1722229839788,-500.0,0.00010958,2]
[333525871,1722229839798,-500.0,0.00010958,2]
[333525872,1722229839807,-500.0,0.00010958,2]
[333525873,1722229839817,-500.0,0.00010958,2]
[333525874,1722229839826,-500.0,0.00010958,2]
[333525875,1722229839835,-500.0,0.00010958,2]
[333525876,1722229839845,-538.04366765,0.00010958,2]
[333525877,1722229839855,-2178.78,0.00010958,2]
[333525878,1722229839864,-252.52223118,0.00010958,2]
[333525879,1722229839874,-500.0,0.00010958,2]
[333525880,1722229839883,-500.0,0.00010958,2]
[333525881,1722229839893,-635.19,0.00010958,2]
[333525882,1722229839902,-622.76,0.00010958,2]
[333525883,1722229839911,-622.76,0.00010958,2]
[333525884,1722229839921,-500.0,0.00010958,2]
[333525885,1722229839930,-820.27,0.00010958,2]
[333525886,1722229839939,-1939.93,0.00010958,2]
[333525887,1722229839949,-820.27,0.00010958,2]
[333525888,1722229839958,-561.19,0.00010958,2]
[333525889,1722229839967,-500.0,0.00010958,2]
[333525890,1722229839976,-500.0,0.00010958,2]
[333525891,1722229839986,-500.0,0.00010958,2]
[333525892,1722229839995,-500.0,0.00010958,2]
[333525893,1722229840005,-612.44,0.00010958,2]
[333525894,1722229840014,-500.0,0.00010958,2]
[333525895,1722229840023,-500.0,0.00010958,2]
[333525896,1722229840033,-500.0,0.00010958,2]
[333525897,1722229840042,-500.0,0.00010958,2]
[333525898,1722229840055,-500.0,0.00010958,2]
[333525899,1722229840065,-500.0,0.00010958,2]
[333525900,1722229840074,-500.0,0.00010958,2]
[333525901,1722229840084,-500.0,0.00010958,2]
[333525902,1722229840094,-500.0,0.00010958,2]
[333525903,1722229840114,-500.0,0.00010958,2]
[333525904,1722229840127,-2885.15,0.00010958,2]
[333525905,1722229840137,-500.0,0.00010958,2]
[333525906,1722229840146,-500.0,0.00010958,2]
[333525907,1722229840156,-2274.48,0.00010958,2]
[333525908,1722229840167,-500.0,0.00010958,2]
[333525909,1722229840176,-500.0,0.00010958,2]
[333525910,1722229840186,-500.0,0.00010958,2]
[333525911,1722229840196,-500.0,0.00010958,2]
[333525912,1722229840205,-500.0,0.00010958,2]
[333525913,1722229840215,-1684.96,0.00010958,2]
[333525914,1722229840225,-500.0,0.00010958,2]
[333525915,1722229840234,-500.0,0.00010958,2]
[333525916,1722229840244,-500.0,0.00010958,2]
[333525917,1722229840254,-1795.63,0.00010958,2]
[333525918,1722229840264,-500.0,0.00010958,2]
[333525919,1722229840273,-500.0,0.00010958,2]
[333525920,1722229840283,-500.0,0.00010958,2]
[333525921,1722229840294,-500.0,0.00010958,2]
[333525922,1722229840303,-426.73187756,0.00010958,2]
[333525923,1722229840313,-500.0,0.00010958,2]
[333525924,1722229840323,-500.0,0.00010958,2]
[333525925,1722229840333,-500.0,0.00010958,2]
[333525926,1722229840342,-500.0,0.00010958,2]
[333525927,1722229840352,-500.0,0.00010958,2]
[333525928,1722229840362,-601.58,0.00010958,2]
[333525929,1722229840371,-500.0,0.00010958,2]
[333525930,1722229840381,-364.79382164,0.00010958,2]
[333525931,1722229840391,-500.0,0.00010958,2]
[333525932,1722229840401,-500.0,0.00010958,2]
[333525933,1722229840411,-500.0,0.00010958,2]
[333525934,1722229840421,-500.0,0.00010958,2]
[333525935,1722229840431,-500.0,0.00010958,2]
[333525936,1722229840440,-500.0,0.00010958,2]
[333525937,1722229840450,-500.0,0.00010958,2]
[333525938,1722229840460,-500.0,0.00010958,2]
[333525940,1722229840470,-500.0,0.00010958,2]
[333525941,1722229840480,-500.0,0.00010958,2]
[333525943,1722229840489,-500.0,0.00010958,2]
[333525945,1722229840499,-500.0,0.00010958,2]
[333525947,1722229840508,-500.0,0.00010958,2]
[333525949,1722229840518,-500.0,0.00010958,2]
[333525951,1722229840527,-500.0,0.00010958,2]
[333525953,1722229840537,-500.0,0.00010958,2]
[333525955,1722229840547,-500.0,0.00010958,2]
[333525957,1722229840556,-500.0,0.00010958,2]
[333525958,1722229840566,-500.0,0.00010958,2]
[333525960,1722229840576,-501.85820849,0.00010958,2]
[333525962,1722229840585,-500.0,0.00010958,2]
[333525963,1722229840595,-500.0,0.00010958,2]
[333525964,1722229840605,-500.0,0.00010958,2]
[333525965,1722229840614,-500.0,0.00010958,2]
[333525966,1722229840624,-500.0,0.00010958,2]
[333525967,1722229840633,-500.0,0.00010958,2]
[333525968,1722229840643,-500.0,0.00010958,2]
[333525969,1722229840653,-500.0,0.00010958,2]
[333525970,1722229840662,-500.0,0.00010958,2]
[333525971,1722229840672,-500.0,0.00010958,2]
[333525972,1722229840682,-500.0,0.00010958,2]
[333525973,1722229840691,-500.0,0.00010958,2]
[333525974,1722229840701,-501.69387108,0.00010958,2]
[333525975,1722229840710,-500.0,0.00010958,2]
[333525976,1722229840720,-500.0,0.00010958,2]
[333525977,1722229840730,-500.0,0.00010958,2]
[333525978,1722229840739,-500.0,0.00010958,2]
[333525979,1722229840749,-500.0,0.00010958,2]
[333525980,1722229840758,-268.365,0.00010958,2]
[333525981,1722229840767,-500.0,0.00010958,2]
[333525982,1722229840778,-500.0,0.00010958,2]
[333525983,1722229840787,-500.0,0.00010958,2]
[333525984,1722229840797,-500.0,0.00010958,2]
[333525985,1722229840806,-500.0,0.00010958,2]
[333525986,1722229840815,-500.0,0.00010958,2]
[333525987,1722229840825,-500.0,0.00010958,2]
[333525988,1722229840834,-2255.02,0.00010958,2]
[333525989,1722229840843,-500.0,0.00010958,2]
[333525990,1722229840853,-500.0,0.00010958,2]
[333525991,1722229840862,-500.0,0.00010958,2]
[333525992,1722229840871,-500.0,0.00010958,2]
[333525993,1722229840880,-542.07619999,0.00010958,2]
[333525994,1722229840889,-500.0,0.00010958,2]
[333525995,1722229840898,-500.0,0.00010958,2]
[333525996,1722229840908,-504.43792704,0.00010958,2]
[333525997,1722229840917,-500.0,0.00010958,2]
[333525998,1722229840926,-500.0,0.00010958,2]
[333525999,1722229840935,-500.0,0.00010958,2]
[333526000,1722229840944,-500.0,0.00010958,2]
[333526001,1722229840953,-500.0,0.00010958,2]
[333526002,1722229840962,-500.0,0.00010958,2]
[333526003,1722229840971,-510.65637268,0.00010958,2]
[333526004,1722229840980,-500.0,0.00010958,2]
[333526005,1722229840989,-500.0,0.00010958,2]
[333526006,1722229840998,-500.0,0.00010958,2]
[333526007,1722229841007,-500.0,0.00010958,2]
[333526008,1722229841016,-952.4,0.00010958,2]
[333526009,1722229841025,-500.0,0.00010958,2]
[333526010,1722229841034,-500.0,0.00010958,2]
[333526011,1722229841046,-661.0,0.00010958,2]
[333526012,1722229841055,-500.0,0.00010958,2]
[333526013,1722229841064,-500.0,0.00010958,2]
[333526014,1722229841073,-500.0,0.00010958,2]
[333526015,1722229841082,-500.0,0.00010958,2]
[333526016,1722229841092,-500.0,0.00010958,2]
[333526017,1722229841101,-313.81278316,0.00010958,2]
[333526018,1722229841111,-500.0,0.00010958,2]
[333526019,1722229841121,-500.0,0.00010958,2]
[333526020,1722229841130,-676.83,0.00010958,2]
[333526021,1722229841139,-500.0,0.00010958,2]
[333526022,1722229841149,-500.0,0.00010958,2]
[333526023,1722229841158,-20000.0,0.00010958,2]
[333526024,1722229841167,-503.78821475,0.00010958,2]
[333526025,1722229841177,-788.08,0.00010958,2]
[333526026,1722229841186,-500.0,0.00010958,2]
[333526027,1722229841196,-512.53890167,0.00010958,2]
[333526028,1722229841205,-500.0,0.00010958,2]
[333526029,1722229841215,-500.0,0.00010958,2]
[333526030,1722229841225,-500.0,0.00010958,2]
[333526031,1722229841234,-500.0,0.00010958,2]
[333526032,1722229841244,-511.15649587,0.00010958,2]
[333526033,1722229841253,-500.0,0.00010958,2]
[333526034,1722229841263,-500.0,0.00010958,2]
[333526035,1722229841272,-500.0,0.00010958,2]
[333526036,1722229841283,-498.02583108,0.00010958,2]
[333526037,1722229841292,-1196.95,0.00010958,2]
[333526038,1722229841302,-500.0,0.00010958,2]
[333526039,1722229841312,-500.0,0.00010958,2]
[333526040,1722229841322,-500.0,0.00010958,2]
[333526041,1722229841331,-636.37,0.00010958,2]
[333526042,1722229841341,-500.0,0.00010958,2]
[333526043,1722229841350,-500.0,0.00010958,2]
[333526044,1722229841360,-500.0,0.00010958,2]
[333526045,1722229841369,-453.0,0.00010958,2]
[333526046,1722229841379,-500.0,0.00010958,2]
[333526047,1722229841388,-500.0,0.00010958,2]
[333526048,1722229841397,-500.0,0.00010958,2]
[333526049,1722229841407,-500.0,0.00010958,2]
[333526050,1722229841416,-1545.63,0.00010958,2]
[333526051,1722229841426,-500.0,0.00010958,2]
[333526052,1722229841435,-2508.76,0.00010958,2]
[333526053,1722229841445,-284.58909882,0.00010958,2]
[333526054,1722229841455,-508.84529924,0.00010958,2]
[333526055,1722229841464,-507.28799798,0.00010958,2]
[333526056,1722229841473,-500.0,0.00010958,2]
[333526057,1722229841483,-504.17625958,0.00010958,2]
[333526058,1722229841492,-1284.89,0.00010958,2]
[333526059,1722229841502,-500.0,0.00010958,2]
[333526060,1722229841511,-500.0,0.00010958,2]
[333526061,1722229841521,-500.0,0.00010958,2]
[333526062,1722229841530,-500.0,0.00010958,2]
[333526063,1722229841539,-906.6,0.00010958,2]
[333526064,1722229841549,-263.69077484,0.00010958,2]
[333526065,1722229841558,-500.0,0.00010958,2]
[333526066,1722229841567,-515.00129297,0.00010958,2]
[333526067,1722229841577,-571.26,0.00010958,2]
[333526068,1722229841586,-3212.36,0.00010958,2]
[333526069,1722229841595,-500.0,0.00010958,2]
[333526070,1722229841604,-500.0,0.00010958,2]
[333526071,1722229841613,-500.0,0.00010958,2]
[333526072,1722229841623,-500.0,0.00010958,2]
[333526073,1722229841632,-594.34516785,0.00010958,2]
[333526074,1722229841642,-500.0,0.00010958,2]
[333526075,1722229841651,-500.0,0.00010958,2]
[333526076,1722229841661,-500.0,0.00010958,2]
[333526077,1722229841671,-1810.36,0.00010958,2]
[333526078,1722229841680,-510.93197964,0.00010958,2]
[333526079,1722229841689,-505.60825359,0.00010958,2]
[333526080,1722229841698,-2580.2,0.00010958,2]
[333526081,1722229841707,-818.34,0.00010958,2]
[333526082,1722229841718,-1822.63,0.00010958,2]
[333526083,1722229841727,-500.0,0.00010958,2]
[333526084,1722229841737,-500.0,0.00010958,2]
[333526085,1722229841747,-590.41770229,0.00010958,2]
[333526086,1722229841756,-500.0,0.00010958,2]
[333526087,1722229841766,-1894.01,0.00010958,2]
[333526088,1722229841775,-2828.29,0.00010958,2]
[333526089,1722229841785,-500.0,0.00010958,2]
[333526090,1722229841794,-500.0,0.00010958,2]
[333526091,1722229841803,-538.79902918,0.00010958,2]
[333526092,1722229841813,-1117.27,0.00010958,2]
[333526093,1722229841822,-1790.29,0.00010958,2]
[333526094,1722229841832,-500.0,0.00010958,2]
[333526095,1722229841841,-505.17818644,0.00010958,2]
[333526096,1722229841850,-892.32,0.00010958,2]
[333526097,1722229841861,-1092.09,0.00010958,2]
[333526098,1722229841870,-500.0,0.00010958,2]
[333526099,1722229841879,-500.0,0.00010958,2]
[333526100,1722229841888,-1566.5,0.00010958,2]
[333526101,1722229841897,-500.0,0.00010958,2]
[333526102,1722229841906,-500.0,0.00010958,2]
[333526103,1722229841918,-510.88,0.00010958,2]
[333526104,1722229841927,-500.0,0.00010958,2]
[333526105,1722229841937,-500.0,0.00010958,2]
[333526106,1722229841949,-500.0,0.00010958,2]
[333526107,1722229841958,-500.0,0.00010958,2]
[333526108,1722229841967,-500.0,0.00010958,2]
[333526109,1722229841976,-500.0,0.00010958,2]
[333526110,1722229841986,-500.0,0.00010958,2]
[333526111,1722229841995,-500.0,0.00010958,2]
[333526112,1722229842004,-500.0,0.00010958,2]
[333526113,1722229842013,-500.0,0.00010958,2]
[333526114,1722229842023,-500.0,0.00010958,2]
[333526115,1722229842032,-500.0,0.00010958,2]
[333526116,1722229842042,-521.0314546,0.00010958,2]
[333526117,1722229842055,-500.0,0.00010958,2]
[333526118,1722229842064,-500.0,0.00010958,2]
[333526119,1722229842074,-500.0,0.00010958,2]
[333526120,1722229842084,-500.0,0.00010958,2]
[333526121,1722229842095,-394.91311195,0.00010958,2]
[333526122,1722229842105,-500.0,0.00010958,2]
[333526123,1722229842114,-500.0,0.00010958,2]
[333526124,1722229842125,-500.0,0.00010958,2]
[333526125,1722229842134,-500.0,0.00010958,2]
[333526126,1722229842144,-500.0,0.00010958,2]
[333526127,1722229842153,-500.0,0.00010958,2]
[333526128,1722229842164,-500.0,0.00010958,2]
[333526129,1722229842173,-500.0,0.00010958,2]
[333526130,1722229842183,-500.0,0.00010958,2]
[333526131,1722229842192,-500.0,0.00010958,2]
[333526132,1722229842202,-497.0,0.00010958,2]
[333526133,1722229842211,-500.0,0.00010958,2]
[333526134,1722229842220,-500.0,0.00010958,2]
[333526135,1722229842229,-500.0,0.00010958,2]
[333526136,1722229842238,-377.61645336,0.00010958,2]
[333526137,1722229842247,-500.0,0.00010958,2]
[333526138,1722229842256,-500.0,0.00010958,2]
[333526139,1722229842265,-500.0,0.00010958,2]
[333526140,1722229842274,-500.0,0.00010958,2]
[333526141,1722229842284,-500.0,0.00010958,2]
[333526142,1722229842293,-500.0,0.00010958,2]
[333526143,1722229842302,-514.57339698,0.00010958,2]
[333526144,1722229842311,-500.0,0.00010958,2]
[333526145,1722229842320,-500.0,0.00010958,2]
[333526146,1722229842330,-500.0,0.00010958,2]
[333526147,1722229842339,-500.0,0.00010958,2]
[333526148,1722229842349,-500.0,0.00010958,2]
[333526149,1722229842358,-500.0,0.00010958,2]
[333526150,1722229842367,-500.0,0.00010958,2]
[333526151,1722229842377,-500.0,0.00010958,2]
[333526152,1722229842386,-216.47485337,0.00010958,2]
[333526153,1722229842395,-500.0,0.00010958,2]
[333526154,1722229842405,-500.0,0.00010958,2]
[333526155,1722229842418,-500.0,0.00010958,2]
[333526156,1722229842430,-474.44861388,0.00010958,2]
[333526157,1722229842439,-653.42,0.00010958,2]
[333526158,1722229842449,-653.42,0.00010958,2]
[333526160,1722229842636,-766.5,0.00010958,2]
[333526161,1722229842646,-766.5,0.00010958,2]
[333526162,1722229842655,-807.86,0.00010958,2]
[333526163,1722229842666,-807.86,0.00010958,2]
[333526164,1722229842675,-550.91,0.00010958,2]
[333526165,1722229842685,-550.91,0.00010958,2]
[333526166,1722229842694,-500.0,0.00010958,2]
[333526167,1722229842703,-500.0,0.00010958,2]
[333526168,1722229842713,-500.0,0.00010958,2]
[333526169,1722229842722,-500.0,0.00010958,2]
[333526170,1722229842731,-500.0,0.00010958,2]
[333526171,1722229842740,-500.0,0.00010958,2]
[333526172,1722229842749,-500.0,0.00010958,2]
[333526173,1722229842758,-500.0,0.00010958,2]
[333526174,1722229842768,-505.59,0.00010958,2]
[333526175,1722229842777,-505.59,0.00010958,2]
[333526176,1722229842787,-703.11,0.00010958,2]
[333526177,1722229842796,-703.11,0.00010958,2]
[333526178,1722229842806,-500.0,0.00010958,2]
[333526179,1722229842816,-500.0,0.00010958,2]
[333526180,1722229842826,-500.0,0.00010958,2]
[333526181,1722229842835,-500.0,0.00010958,2]
[333526182,1722229842845,-500.0,0.00010958,2]
[333526184,1722229842855,-500.0,0.00010958,2]
[333526185,1722229842865,-3081.14145425,0.00010958,2]
[333526187,1722229842875,-514.82,0.00010958,2]
[333526189,1722229842884,-514.82,0.00010958,2]
[333526191,1722229842894,-500.0,0.00010958,2]
[333526192,1722229842904,-500.0,0.00010958,2]